fUSD/lending_fUSD_20251103
["ID","MTS","AMOUNT","RATE_DAILY","PERIOD"]
[392927527,1762152638729,-151.086521,0.00014498,2]
[392927528,1762152638738,-151.0,0.00014498,2]
[392927529,1762152638748,-151.0,0.00014498,2]
[392927530,1762152638757,-151.0,0.00014498,2]
[392927531,1762152638767,-289.628605,0.00014498,2]
[392927532,1762152638777,-151.0,0.00014498,2]
[392927533,1762152638786,-156.456256,0.00014498,2]
[392927534,1762152638796,-151.0,0.00014498,2]
[392927535,1762152638809,-158.205413,0.00014498,2]
[392927536,1762152638819,-154.955295,0.00014498,2]
[392927537,1762152638829,-151.0,0.00014498,2]
[392927538,1762152638840,-151.0,0.00014498,2]
[392927539,1762152638852,-160.320493,0.00014498,2]
[392927540,1762152638866,-151.0,0.00014498,2]
[392927541,1762152638876,-151.532875,0.00014498,2]
[392927542,1762152638887,-151.0,0.00014498,2]
[392927543,1762152638899,-159.757046,0.00014498,2]
[392927544,1762152638909,-151.0,0.00014498,2]
[392927545,1762152638920,-164.161466,0.00014498,2]
[392927546,1762152638929,-156.413892,0.00014498,2]
[392927547,1762152638941,-154.43913,0.00014498,2]
[392927548,1762152638951,-151.0,0.00014498,2]
[392927549,1762152638961,-159.611403,0.00014498,2]
[392927550,1762152638971,-151.0,0.00014498,2]
[392927551,1762152638982,-272.17690385,0.000145,2]
[392927552,1762152638992,-1000.0,0.000145,2]
[392927553,1762152639003,-150.0,0.00014515,2]
[392927554,1762152639012,-168.0,0.00014517,2]
[392927555,1762152639022,-500.0,0.00014521,2]
[392927556,1762152639038,-503.0,0.00014521,2]
[392927557,1762152639048,-250.31,0.00014531,2]
[392927558,1762152639063,-1421.98423952,0.00014547,2]
[392927559,1762152639074,-5341.06304591,0.00014547,2]
[392927560,1762152639084,-244.83572464,0.00014547,2]
[392927561,1762152639094,-150.0,0.00014551,2]
[392927562,1762152639104,-1348.0,0.00014566,2]
[392927563,1762152639115,-504.0,0.00014575,2]
[392927564,1762152639125,-500.0,0.00014583,2]
[392927565,1762152639136,-151.0,0.00014583,2]
[392927566,1762152639146,-151.0,0.00014583,2]
[392927567,1762152639156,-151.0,0.00014583,2]
[392927568,1762152639166,-151.0,0.00014583,2]
[392927569,1762152639176,-151.0,0.00014583,2]
[392927570,1762152639187,-283.238315,0.00014583,2]
[392927571,1762152639197,-170.184308,0.00014583,2]
[392927572,1762152639207,-151.0,0.00014583,2]
[392927573,1762152639217,-98.94053537,0.00014583,2]
[392927574,1762152639231,-52.05946463,0.00014583,2]
[392927575,1762152639242,-151.0,0.00014583,2]
[392927576,1762152639252,-151.0,0.00014583,2]
[392927577,1762152639262,-151.0,0.00014583,2]
[392927578,1762152639272,-151.0,0.00014583,2]
[392927579,1762152639282,-270.644057,0.00014583,2]
[392927580,1762152639293,-151.0,0.00014583,2]
[392927581,1762152639304,-192.053204,0.00014583,2]
[392927582,1762152639314,-151.0,0.00014583,2]
[392927583,1762152639325,-23830.0786273,0.00014583,2]
[392927584,1762152639338,-11080.21621537,0.00014583,2]
[392927585,1762152639349,-150.0,0.00014585,2]
[392927586,1762152639358,-150.0,0.00014585,2]
[392927587,1762152639369,-150.0,0.00014585,2]
[392927588,1762152639378,-155.879,0.00014588,2]
[392927589,1762152639392,-2300.251,0.00014591,2]
[392927590,1762152639403,-150.0,0.00014591,2]
[392927591,1762152639413,-151.0,0.00014591,2]
[392927592,1762152639423,-151.0,0.00014591,2]
[392927593,1762152639432,-151.0,0.00014591,2]
[392927594,1762152639442,-151.0,0.00014591,2]
[392927595,1762152639452,-151.196677,0.00014591,2]
[392927596,1762152639462,-150.0,0.00014591,2]
[392927597,1762152639473,-217.3955486,0.00014591,2]
[392927598,1762152639484,-500.0,0.00014591,2]
[392927599,1762152639494,-150.0,0.00014591,2]
[392927600,1762152639504,-151.13904288,0.00014591,2]
[392927601,1762152639514,-150.0,0.00014591,2]
[392927602,1762152639525,-150.0,0.00014591,2]
[392927604,1762152639535,-150.0,0.00014591,2]
[392927605,1762152639544,-150.0,0.00014591,2]
[392927606,1762152639556,-252.60559839,0.00014591,2]
[392927607,1762152639566,-150.0,0.00014591,2]
[392927608,1762152639575,-150.0,0.00014591,2]
[392927609,1762152639585,-150.0,0.00014591,2]
[392927610,1762152639594,-150.0,0.00014591,2]
[392927611,1762152639604,-500.0,0.00014591,2]
[392927612,1762152639614,-500.0,0.00014591,2]
[392927613,1762152639625,-150.0,0.00014591,2]
[392927614,1762152639635,-150.0,0.00014591,2]
[392927615,1762152639645,-755.0,0.00014591,2]
[392927616,1762152639655,-996.0,0.00014591,2]
[392927617,1762152639666,-543.33387101,0.00014595,2]
[392927618,1762152639678,-1285.66612899,0.00014595,2]
[392927619,1762152639688,-870.01930888,0.000146,2]
[392927620,1762152639697,-200.0,0.0001461,2]
[392927621,1762152639707,-171.64,0.00014613,2]
[392927625,1762152639717,-3810.10076084,0.00014618,2]
[392927627,1762152639729,-1530.96228507,0.00014618,2]
[392927628,1762152639740,-1845.0,0.00014624,2]
[392927629,1762152639751,-418.0,0.00014653,2]
[392927631,1762152639765,-150.0,0.0001466,2]
[392927633,1762152639774,-166.66,0.00014675,2]
[392927634,1762152639784,-150.0,0.00014687,2]
[392927635,1762152639793,-5341.06304591,0.00014688,2]
[392927636,1762152639804,-168.0,0.00014693,2]
[392927637,1762152639814,-160.82,0.00014699,2]
[392927638,1762152639824,-168.0,0.00014701,2]
[392927639,1762152639834,-150.0,0.0001471,2]
[392927640,1762152639844,-150.0,0.00014728,2]
[392927641,1762152639856,-151.92422519,0.00014728,2]
[392927642,1762152639867,-500.0,0.00014728,2]
[392927643,1762152639877,-150.0,0.00014728,2]
[392927644,1762152639887,-150.0,0.00014728,2]
[392927645,1762152639899,-150.0,0.00014728,2]
[392927646,1762152639909,-224.96766427,0.00014728,2]
[392927647,1762152639919,-281.50662984,0.00014728,2]
[392927648,1762152639929,-500.0,0.00014728,2]
[392927649,1762152639940,-500.0,0.00014728,2]
[392927650,1762152639950,-150.0,0.00014728,2]
[392927651,1762152639963,-150.0,0.00014728,2]
[392927652,1762152639973,-755.0,0.00014728,2]
[392927653,1762152639983,-996.0,0.00014728,2]
[392927654,1762152639993,-5341.06304591,0.00014759,2]
[392927655,1762152640003,-301.60284892,0.0001476,2]
[392927656,1762152640014,-151.0,0.00014762,2]
[392927657,1762152640024,-151.0,0.00014762,2]
[392927658,1762152640033,-152.574623,0.00014762,2]
[392927659,1762152640043,-151.0,0.00014762,2]
[392927660,1762152640054,-150.0,0.00014772,2]
[392927661,1762152640064,-150.0,0.00014772,2]
[392927662,1762152640074,-858.48,0.00014772,2]
[392927663,1762152640085,-1843.0,0.00014772,2]
[392927664,1762152640095,-168.0,0.00014786,2]
[392927665,1762152640104,-151.0,0.00014809,2]
[392927666,1762152640114,-151.0,0.00014809,2]
[392927667,1762152640123,-151.0,0.00014809,2]
[392927668,1762152640134,-197.783564,0.00014809,2]
[392927669,1762152640143,-151.0,0.00014809,2]
[392927670,1762152640153,-150.0,0.00014823,2]
[392927671,1762152640165,-151.0,0.00014829,2]
[392927672,1762152640175,-5341.06304591,0.00014829,2]
[392927673,1762152640185,-263.481517,0.00014843,2]
[392927674,1762152640195,-3113.0,0.00014843,2]
[392927675,1762152640205,-151.0,0.00014843,2]
[392927676,1762152640215,-3421.0,0.00014843,2]
[392927677,1762152640225,-573.0,0.00014843,2]
[392927678,1762152640236,-821.701,0.00014843,2]
[392927679,1762152640246,-607.0,0.00014843,2]
[392927681,1762152640255,-1595.0,0.00014843,2]
[392927682,1762152640265,-1315.0,0.00014843,2]
[392927683,1762152640275,-819.0,0.00014843,2]
[392927684,1762152640285,-1272.0,0.00014843,2]
[392927685,1762152640295,-1698.8,0.00014843,2]
[392927686,1762152640304,-6653.0,0.00014843,2]
[392927687,1762152640314,-905.0,0.00014843,2]
[392927688,1762152640324,-1187.0,0.00014843,2]
[392927689,1762152640334,-152.0,0.00014849,2]
[392927690,1762152640344,-154.69909821,0.00014849,2]
[392927691,1762152640354,-253.63598362,0.00014857,2]
[392927692,1762152640364,-200.0,0.00014859,2]
[392927693,1762152640374,-150.0,0.00014865,2]
[392927694,1762152640384,-575.96626849,0.00014865,2]
[392927695,1762152640395,-150.0,0.00014865,2]
[392927696,1762152640405,-150.0,0.00014865,2]
[392927697,1762152640414,-150.0,0.00014865,2]
[392927698,1762152640424,-500.0,0.00014865,2]
[392927699,1762152640434,-500.0,0.00014865,2]
[392927700,1762152640444,-205.56828253,0.00014865,2]
[392927702,1762152640454,-150.0,0.00014865,2]
[392927704,1762152640464,-755.0,0.00014865,2]
[392927706,1762152640473,-996.0,0.00014865,2]
[392927708,1762152640483,-154.6494431,0.00014876,2]
[392927709,1762152640494,-551.01883781,0.0001488,2]
[392927710,1762152640504,-416.09662567,0.0001488,2]
[392927711,1762152640514,-5000.0,0.0001488,2]
[392927712,1762152640523,-477.72403831,0.0001488,2]
[392927713,1762152640533,-284.52928108,0.0001488,2]
[392927714,1762152640543,-477.72403829,0.0001489,2]
[392927715,1762152640555,-5800.0,0.00014891,2]
[392927716,1762152640565,-151.0,0.00014892,2]
[392927717,1762152640575,-291.234579,0.00014892,2]
[392927718,1762152640584,-151.0,0.00014892,2]
[392927719,1762152640594,-151.0,0.00014892,2]
[392927720,1762152640604,-151.0,0.00014892,2]
[392927721,1762152640614,-151.0,0.00014892,2]
[392927722,1762152640623,-168.0,0.00014895,2]
[392927723,1762152640633,-3242.71188726,0.000149,2]
[392927724,1762152640643,-5800.0,0.000149,2]
[392927725,1762152640652,-179.35,0.000149,2]
[392927726,1762152640662,-415.19,0.000149,2]
[392927727,1762152640671,-5341.06304591,0.000149,2]
[392927728,1762152640681,-151.0,0.000149,2]
[392927729,1762152640691,-151.0,0.000149,2]
[392927730,1762152640700,-151.0,0.000149,2]
[392927731,1762152640709,-151.0,0.000149,2]
[392927732,1762152640719,-477.72403829,0.000149,2]
[392927733,1762152640729,-154.747354,0.000149,2]
[392927734,1762152640739,-203.97594529,0.000149,2]
[392927735,1762152640748,-189.42492089,0.000149,2]
[392927736,1762152640758,-301.56974275,0.000149,2]
[392927737,1762152640767,-935.36453604,0.000149,2]
[392927738,1762152640777,-986.52822439,0.00014908,2]
[392927739,1762152640787,-514.84070869,0.00014913,2]
[392927740,1762152640796,-200.0,0.00014944,2]
[392927741,1762152640808,-150.0,0.00014944,2]
[392927742,1762152640818,-364.0,0.00014951,2]
[392927743,1762152640828,-168.0,0.00014957,2]
[392927744,1762152640838,-150.0,0.00014959,2]
[392927745,1762152640848,-199.40832095,0.00014959,2]
[392927746,1762152640863,-169.67742824,0.00014959,2]
[392927747,1762152640873,-150.0,0.00014959,2]
[392927748,1762152640883,-150.0,0.00014959,2]
[392927749,1762152640892,-184.0,0.00014959,2]
[392927750,1762152640902,-150.0,0.00014959,2]
[392927751,1762152640911,-160.58290822,0.00014959,2]
[392927752,1762152640921,-283.17879875,0.00014959,2]
[392927753,1762152640931,-153.7030877,0.00014959,2]
[392927754,1762152640941,-155.62045553,0.00014959,2]
[392927755,1762152640952,-242.69269608,0.00014959,2]
[392927756,1762152640961,-150.0,0.00014959,2]
[392927757,1762152640971,-150.0,0.00014959,2]
[392927758,1762152640981,-293.81435096,0.00014966,2]
[392927759,1762152640990,-247.58889915,0.0001497,2]
[392927760,1762152641000,-256.43396284,0.00014973,2]
[392927761,1762152641010,-199.2262633,0.00014973,2]
[392927762,1762152641020,-500.0,0.00014973,2]
[392927763,1762152641030,-465.40478572,0.00014973,2]
[392927764,1762152641040,-500.0,0.00014973,2]
[392927765,1762152641050,-160.4397201,0.00014973,2]
[392927766,1762152641061,-500.0,0.00014973,2]
[392927767,1762152641070,-190.08847977,0.00014973,2]
[392927768,1762152641399,-309.91152023,0.00014973,2]
[392927769,1762152641408,-408.33492072,0.00014973,2]
[392927770,1762152641420,-91.66507928,0.00014973,2]
[392927771,1762152641429,-503.00202269,0.00014973,2]
[392927772,1762152641439,-307.65452898,0.00014973,2]
[392927773,1762152641640,-11069.59294133,0.00014333,2]
[392927774,1762152641650,-690.4261253,0.00014577,2]
[392927775,1762152641660,-147.33652206,0.00014973,2]
[392927776,1762152641669,-500.0,0.00014973,2]
[392927777,1762152641679,-585.02702278,0.00014973,2]
[392927778,1762152641688,-500.0,0.00014973,2]
[392927779,1762152641697,-500.0,0.00014973,2]
[392927780,1762152641706,-500.73512593,0.00014973,2]
[392927781,1762152641716,-616.14579358,0.00014973,2]
[392927782,1762152641725,-500.0,0.00014973,2]
[392927783,1762152641735,-500.0,0.00014973,2]
[392927784,1762152641744,-500.0,0.00014973,2]
[392927785,1762152641754,-500.0,0.00014973,2]
[392927786,1762152641763,-500.97625752,0.00014973,2]
[392927787,1762152641772,-500.0,0.00014973,2]
[392927788,1762152641781,-500.0,0.00014973,2]
[392927789,1762152641791,-180.19074985,0.00014973,2]
[392927790,1762152641801,-500.0,0.00014973,2]
[392927791,1762152641810,-500.0,0.00014973,2]
[392927792,1762152641820,-500.0,0.00014973,2]
[392927793,1762152641829,-3984.0,0.00014978,2]
[392927794,1762152641840,-156.2,0.00014978,2]
[392927795,1762152641849,-675.53820772,0.00014979,2]
[392927796,1762152641862,-1020.83351602,0.00014979,2]
[392927797,1762152641871,-500.0,0.00014979,2]
[392927798,1762152641881,-500.0,0.00014979,2]
[392927799,1762152641890,-500.0,0.00014979,2]
[392927800,1762152641900,-500.0,0.00014979,2]
[392927801,1762152641908,-500.0,0.00014979,2]
[392927802,1762152641918,-500.0,0.00014979,2]
[392927803,1762152641928,-270.26611411,0.00014979,2]
[392927804,1762152641938,-500.0,0.00014979,2]
[392927805,1762152641947,-331.3447877,0.00014979,2]
[392927806,1762152641957,-500.0,0.00014979,2]
[392927807,1762152641966,-500.0,0.00014979,2]
[392927808,1762152641976,-500.0,0.00014979,2]
[392927809,1762152641985,-500.0,0.00014979,2]
[392927810,1762152641994,-500.0,0.00014979,2]
[392927811,1762152642003,-500.0,0.00014979,2]
[392927812,1762152642012,-500.0,0.00014979,2]
[392927813,1762152642022,-500.0,0.00014979,2]
[392927814,1762152642031,-1757428.37438085,0.0001498,2]
[392927815,1762152642041,-27360.81364676,0.0001498,2]
[392927816,1762152642050,-151.0,0.0001498,2]
[392927817,1762152642061,-151.0,0.0001498,2]
[392927818,1762152642070,-151.0,0.0001498,2]
[392927819,1762152642081,-151.0,0.0001498,2]
[392927820,1762152642090,-295.978956,0.0001498,2]
[392927821,1762152642100,-151.0,0.0001498,2]
[392927822,1762152642111,-151.0,0.0001498,2]
[392927823,1762152642121,-151.0,0.0001498,2]
[392927824,1762152642130,-151.0,0.0001498,2]
[392927825,1762152642139,-247.58889915,0.0001499,2]
[392927826,1762152642149,-247.58889915,0.0001499,2]
[392927827,1762152642158,-500.0,0.00014998,2]
[392927828,1762152642168,-170072.68769069,0.00014999,2]
[392927829,1762152642177,-39142.62931663,0.00014999,2]
[392927830,1762152642186,-151.0,0.00014999,2]
[392927831,1762152642196,-151.0,0.00014999,2]
[392927832,1762152642206,-151.0,0.00014999,2]
[392927833,1762152642215,-500.0,0.00014999,2]
[392927834,1762152642225,-500.0,0.00014999,2]
[392927835,1762152642234,-500.0,0.00014999,2]
[392927836,1762152642244,-500.0,0.00014999,2]
[392927837,1762152642253,-500.0,0.00014999,2]
[392927838,1762152642263,-500.0,0.00014999,2]
[392927839,1762152642273,-500.0,0.00014999,2]
[392927840,1762152642282,-500.0,0.00014999,2]
[392927841,1762152642291,-500.0,0.00014999,2]
[392927842,1762152642300,-266.17310046,0.00014999,2]
[392927843,1762152642312,-593.12438034,0.00014999,2]
[392927844,1762152642321,-279378.33804063,0.00015,2]
[392927845,1762152642331,-2051990.42339089,0.00015,2]
[392927846,1762152642351,-292.06814066,0.00015,2]
[392927850,1762152642594,-1955.9641197,0.00015,2]
[392927855,1762152642713,-12279.80569954,0.00015,2]
[392927858,1762152643590,-1.6e-07,0.00015,2]
[392927859,1762152643606,-574.26033408,0.00015,2]
[392927860,1762152643633,-524.16,0.00015,2]
[392927861,1762152643654,-302.0,0.00015,2]
[392927862,1762152643665,-1408.96817405,0.00015,2]
[392927863,1762152643868,-244.83572464,0.00014618,2]
[392927864,1762152643878,-229.63827536,0.00015,2]
[392927865,1762152643902,-1437.65610549,0.00014404,2]
[392927866,1762152643913,-8625.95989335,0.00014404,2]
[392927880,1762152645819,-1005.97694249,0.00014404,2]
[392927881,1762152645828,-1191.32337575,0.00015,2]
[392927882,1762152645840,-52595.11791045,0.00015,2]
[392927883,1762152645977,-882.41675995,0.00015,2]
[392927884,1762152645990,-1718.88,0.00015,2]
[392927885,1762152646012,-369.369,0.00015,2]
[392927886,1762152646024,-5046.14920523,0.00015,2]
[392927887,1762152646040,-651.05151222,0.00015,2]
[392927888,1762152646052,-11651.35184316,0.00015,2]
[392927895,1762152663166,559.210848,0.00014289,2]
[392927896,1762152678768,2000.0,0.00014,2]
[392927897,1762152715216,-397.99291011,0.00014361,2]
[392927898,1762152717635,-102.00708989,0.00014361,2]
[392927899,1762152717662,-149.99999984,0.00014361,2]
[392927900,1762152732515,500.0,0.00014252,2]
[392927901,1762152740274,308.6072616,0.00014,2]
[392927903,1762152745381,500.0,0.00013,2]
[392927906,1762152759530,-274.31085357,0.00014362,2]
[392927908,1762152766137,15000.0,0.00014262,2]
[392927909,1762152766162,15000.0,0.00014262,2]
[392927910,1762152766184,15000.0,0.00014262,2]
[392927911,1762152766205,15000.0,0.00014262,2]
[392927912,1762152766228,15000.0,0.00014262,2]
[392927913,1762152766249,15000.0,0.00014262,2]
[392927914,1762152766277,6132.1918904,0.00014262,2]
[392927915,1762152766303,10000.01,0.00014262,2]
[392927916,1762152766330,10000.01,0.00014262,2]
[392927917,1762152766356,10000.01,0.00014262,2]
[392927918,1762152766381,10000.01,0.00014262,2]
[392927919,1762152766406,10000.01,0.00014262,2]
[392927920,1762152766432,10000.01,0.00014262,2]
[392927921,1762152766457,10000.01,0.00014262,2]
[392927922,1762152766482,10000.01,0.00014262,2]
[392927923,1762152766508,10000.01,0.00014262,2]
[392927924,1762152766564,-15000.0,0.00014262,2]
[392927925,1762152766990,-15000.0,0.00014262,2]
[392927926,1762152767020,-276.60639327,0.00014262,2]
[392927927,1762152767396,-15000.0,0.00014262,2]
[392927928,1762152767726,-15000.0,0.00014262,2]
[392927929,1762152768115,-15000.0,0.00014262,2]
[392927930,1762152768504,-15000.0,0.00014262,2]
[392927931,1762152768860,-15000.0,0.00014262,2]
[392927932,1762152769263,-15000.0,0.00014262,2]
[392927933,1762152769601,-15000.0,0.00014262,2]
[392927934,1762152770118,-15000.0,0.00014262,2]
[392927935,1762152770296,-15000.0,0.00014262,2]
[392927936,1762152770786,-15000.0,0.00014262,2]
[392927937,1762152771211,-15000.0,0.00014262,2]
[392927938,1762152771636,-15000.0,0.00014262,2]
[392927939,1762152777970,-1542.74261379,0.00014262,2]
[392927940,1762152778085,-319.09092697,0.00014262,2]
[392927941,1762152778495,-10000.01,0.00014262,2]
[392927942,1762152778628,-10000.01,0.00014262,2]
[392927943,1762152778783,-1729.25817557,0.00014262,2]
[392927947,1762152849602,-205.4835135,0.00014318,2]
[392927956,1762152852311,-195.0,0.00014318,2]
[392927960,1762152856175,-2544.6991145,0.00014318,2]
[392927961,1762152857621,-170.00218383,0.00014318,2]
[392927962,1762152857662,2544.6991145,0.00014153,2]
[392927963,1762152860173,170.00218383,0.00014153,2]
[392927964,1762152860974,-500.5494506,0.00014318,2]
[392927965,1762152862565,-246.16056217,0.00014318,2]
[392927966,1762152863756,246.16056217,0.00014153,2]
[392927967,1762152864079,-187.2538,0.00014318,2]
[392927968,1762152866750,187.2538,0.00014153,2]
[392927969,1762152866932,-619.3860407,0.00014318,2]
[392927970,1762152868601,-487.58358333,0.00014318,2]
[392927971,1762152868652,619.3860407,0.00014153,2]
[392927972,1762152870334,-333.95861091,0.00014318,2]
[392927973,1762152870381,487.58358333,0.00014153,2]
[392927974,1762152871547,-250.0,0.00014318,2]
[392927975,1762152871690,333.95861091,0.00014153,2]
[392927976,1762152873299,250.0,0.00014153,2]
[392927977,1762152873336,-186.74251173,0.00014318,2]
[392927978,1762152874719,-211.30715009,0.00014318,2]
[392927979,1762152878246,-174.64181959,0.00014318,2]
[392927980,1762152901911,500.0,0.00014218,2]
[392927981,1762152909103,803.86,0.00014,2]
[392927982,1762152911259,803.86,0.00014,2]
[392927983,1762152913190,803.86,0.00014,2]
[392927984,1762152915290,803.86,0.00014,2]
[392927985,1762152917860,803.86,0.00014,2]
[392927986,1762152920839,213.49,6.892e-05,2]
[392927987,1762152921426,213.49,7.255e-05,2]
[392927988,1762152921478,213.49,7.618e-05,2]
[392927989,1762152921525,1.19610456,7.981e-05,2]
[392927990,1762152921556,212.29389544,7.981e-05,2]
[392927991,1762152921658,213.49,8.344e-05,2]
[392927992,1762152922101,213.49,8.706e-05,2]
[392927993,1762152922188,213.49,9.069e-05,2]
[392927994,1762152922312,213.49,9.432e-05,2]
[392927995,1762152922502,213.49,9.795e-05,2]
[392927996,1762152922700,213.49,0.00010157,2]
[392927997,1762152922902,213.49,0.0001052,2]
[392927998,1762152923096,213.49,0.00010883,2]
[392927999,1762152923297,213.49,0.00011246,2]
[392928000,1762152923496,213.49,0.00011608,2]
[392928001,1762152923696,213.49,0.00011971,2]
[392928002,1762152923894,213.49,0.00012334,2]
[392928003,1762152924095,213.49,0.00012697,2]
[392928004,1762152924292,213.49,0.0001306,2]
[392928005,1762152924481,213.49,0.00013422,2]
[392928006,1762152924694,202.83002145,0.00013785,2]
[392928007,1762152924722,10.65997855,0.00013785,2]
[392928008,1762152999027,6574.70612601,0.00013804,2]
[392928009,1762152999051,10000.01,0.00013804,2]
[392928010,1762152999076,10000.01,0.00013804,2]
[392928011,1762152999100,10000.01,0.00013804,2]
[392928012,1762152999125,10000.01,0.00013804,2]
[392928013,1762152999151,10000.01,0.00013804,2]
[392928014,1762152999175,10000.01,0.00013804,2]
[392928015,1762152999200,1478.63387399,0.00013804,2]
[392928016,1762153028369,500.0,0.00013758,2]
[392928017,1762153058848,-515.39218,0.00024688,120]
[392928018,1762153058913,-547.357015,0.00024688,120]
[392928019,1762153058981,-219.89146774,0.00025,120]
[392928020,1762153059047,-160.4,0.00025,120]
[392928021,1762153059113,-1000.0,0.00027,120]
[392928022,1762153059178,-151.0,0.00027,120]
[392928023,1762153059247,-1000.0,0.000275,120]
[392928024,1762153059315,-244.0,0.00028,120]
[392928025,1762153059385,-150.0,0.00028127,120]
[392928026,1762153059451,-316.76,0.000287,120]
[392928027,1762153059522,-150.0,0.0002914,120]
[392928028,1762153059593,-150.0,0.00029897,120]
[392928029,1762153059659,-777.0,0.000299,120]
[392928030,1762153059728,-200.0,0.0003,120]
[392928031,1762153059793,-334.10900115,0.0003,120]
[392928032,1762153059857,-261.10038307,0.0003,120]
[392928033,1762153059924,-288.66626597,0.0003013,120]
[392928034,1762153059991,-159.521095,0.00030136,120]
[392928035,1762153060058,-702.126643,0.00030136,120]
[392928036,1762153060122,-313.638664,0.00030136,120]
[392928037,1762153060186,-305.596924,0.00030136,120]
[392928038,1762153060249,-889.689265,0.00030136,120]
[392928039,1762153060313,-3647.505202,0.00030136,120]
[392928040,1762153060380,-346.827975,0.00030136,120]
[392928041,1762153060448,-616.773647,0.00030136,120]
[392928042,1762153060514,-500.0,0.00030136,120]
[392928043,1762153060579,-1009.55,0.00030136,120]
[392928044,1762153060644,-500.0,0.00030136,120]
[392928045,1762153060712,-500.0,0.00030136,120]
[392928046,1762153060778,-500.0,0.00030136,120]
[392928047,1762153060844,-536.98,0.00030136,120]
[392928048,1762153060905,-500.0,0.00030136,120]
[392928049,1762153060973,-500.0,0.00030136,120]
[392928050,1762153061042,-515.67060677,0.00030136,120]
[392928051,1762153061106,-580.26,0.00030136,120]
[392928052,1762153061172,-503.52519841,0.00030136,120]
[392928053,1762153061238,-500.0,0.00030136,120]
[392928054,1762153061306,-500.0,0.00030136,120]
[392928055,1762153061373,-504.77380743,0.00030136,120]
[392928056,1762153061441,-505.23883656,0.00030136,120]
[392928057,1762153061506,-500.0,0.00030136,120]
[392928058,1762153061571,-500.0,0.00030136,120]
[392928059,1762153061636,-507.08858635,0.00030136,120]
[392928060,1762153061701,-500.0,0.00030136,120]
[392928061,1762153061763,-500.0,0.00030136,120]
[392928062,1762153061827,-500.0,0.00030136,120]
[392928063,1762153061888,-626.21,0.00030136,120]
[392928064,1762153061950,-2259.56,0.00030136,120]
[392928065,1762153062014,-500.0,0.00030136,120]
[392928066,1762153062078,-503.48001965,0.00030136,120]
[392928067,1762153062139,-500.0,0.00030136,120]
[392928068,1762153062201,-500.0,0.00030136,120]
[392928069,1762153062263,-500.0,0.00030136,120]
[392928070,1762153062324,-500.0,0.00030136,120]
[392928071,1762153062386,-577.84,0.00030136,120]
[392928072,1762153062447,-500.0,0.00030136,120]
[392928073,1762153062510,-500.0,0.00030136,120]
[392928074,1762153062573,-508.121475,0.00030136,120]
[392928075,1762153062636,-503.53195648,0.00030136,120]
[392928076,1762153062697,-500.0,0.00030136,120]
[392928077,1762153062760,-500.0,0.00030136,120]
[392928078,1762153062820,-500.0,0.00030136,120]
[392928079,1762153062879,-500.0,0.00030136,120]
[392928080,1762153062940,-500.0,0.00030136,120]
[392928081,1762153063008,-500.0,0.00030136,120]
[392928082,1762153063071,-500.0,0.00030136,120]
[392928083,1762153063134,-644.92,0.00030136,120]
[392928084,1762153063198,-500.0,0.00030136,120]